lending/lending_fUSD_20250920
["ID","MTS","AMOUNT","RATE_DAILY","PERIOD"]
[386530700,1758357040355,-500.0,0.00019973,2]
[386530701,1758357040364,-500.0,0.00019973,2]
[386530702,1758357040373,-501.04291791,0.00019973,2]
[386530703,1758357040383,-500.0,0.00019973,2]
[386530704,1758357040392,-500.0,0.0001998,2]
[386530705,1758357040401,-150.0,0.00019988,2]
[386530706,1758357040411,-500.0,0.00019988,2]
[386530707,1758357040420,-150.0,0.00019988,2]
[386530708,1758357040429,-150.0,0.00019988,2]
[386530709,1758357040438,-500.0,0.00019988,2]
[386530710,1758357040448,-153.34550453,0.00019988,2]
[386530711,1758357040457,-151.50266091,0.00019988,2]
[386530712,1758357040467,-150.0,0.00019988,2]
[386530713,1758357040475,-151.5284124,0.00019988,2]
[386530714,1758357040485,-500.0,0.00019988,2]
[386530715,1758357040494,-201.64233025,0.00019988,2]
[386530716,1758357040504,-150.0,0.00019988,2]
[386530717,1758357040513,-150.0,0.00019988,2]
[386530718,1758357040523,-150.0,0.00019988,2]
[386530719,1758357040532,-151.0,0.00019988,2]
[386530720,1758357040541,-322.6107,0.00019988,2]
[386530721,1758357040551,-670.58624095,0.00019988,2]
[386530722,1758357040560,-152.77939838,0.00019988,2]
[386530723,1758357040569,-500.0,0.00019988,2]
[386530724,1758357040579,-500.0,0.00019988,2]
[386530725,1758357040588,-197.80744879,0.00019988,2]
[386530726,1758357040598,-151.85761706,0.00019988,2]
[386530727,1758357040607,-500.0,0.00019988,2]
[386530728,1758357040616,-150.0,0.00019988,2]
[386530729,1758357040626,-150.0,0.00019988,2]
[386530730,1758357040635,-150.5768624,0.00019988,2]
[386530731,1758357040645,-738.0,0.00019988,2]
[386530732,1758357040654,-500.0,0.00019988,2]
[386530733,1758357040663,-500.0,0.00019988,2]
[386530734,1758357040673,-150.0,0.00019988,2]
[386530735,1758357040682,-150.0,0.00019988,2]
[386530736,1758357040691,-156.2898412,0.00019988,2]
[386530737,1758357040701,-150.0,0.00019988,2]
[386530738,1758357040710,-150.0,0.00019988,2]
[386530739,1758357040719,-500.0,0.00019988,2]
[386530740,1758357040728,-500.0,0.00019988,2]
[386530741,1758357040738,-430.0,0.00019988,2]
[386530742,1758357040747,-299.77654432,0.00019988,2]
[386530743,1758357040757,-150.0,0.00019988,2]
[386530744,1758357040766,-529.0,0.00019988,2]
[386530745,1758357040775,-150.0,0.00019988,2]
[386530746,1758357040784,-150.0,0.00019988,2]
[386530747,1758357040794,-150.0,0.00019988,2]
[386530748,1758357040803,-1150.0,0.00019988,2]
[386530749,1758357040812,-554.0,0.00019988,2]
[386530750,1758357040821,-150.0,0.00019988,2]
[386530751,1758357040831,-500.0,0.00019988,2]
[386530752,1758357040840,-532.0,0.00019988,2]
[386530753,1758357040853,-154.48,0.0001999,2]
[386530754,1758357040863,-151.0,0.00019997,2]
[386530755,1758357040873,-8282.6017807,0.00019998,2]
[386530756,1758357040883,-18010.5330087,0.00019998,2]
[386530757,1758357040892,-2365.197891,0.00019998,2]
[386530758,1758357040901,-500.0,0.0002,2]
[386530759,1758357040911,-24543.17183821,0.0002,2]
[386530760,1758357040920,-640.0,0.0002,2]
[386530761,1758357040930,-48242.63013337,0.0002,2]
[386530762,1758357040949,-263012.41466293,0.0002,2]
[386530763,1758357040959,-1601795.42465304,0.0002,2]
[386530764,1758357040968,-2281.63,0.0002,2]
[386530765,1758357040977,-2281.63,0.0002,2]
[386530766,1758357040987,-2281.63,0.0002,2]
[386530767,1758357040996,-2281.63,0.0002,2]
[386530768,1758357041008,-2281.63,0.0002,2]
[386530769,1758357041018,-2281.62,0.0002,2]
[386530770,1758357041028,-2281.62,0.0002,2]
[386530771,1758357041037,-2281.62,0.0002,2]
[386530772,1758357041047,-2281.62,0.0002,2]
[386530773,1758357041056,-2281.62,0.0002,2]
[386530774,1758357041065,-2281.62,0.0002,2]
[386530775,1758357041074,-2281.62,0.0002,2]
[386530776,1758357041084,-250.0,0.0002,7]
[386530777,1758357041094,-7927.39410983,0.0002,2]
[386530778,1758357041103,-100000.0,0.0002,7]
[386530779,1758357041113,-100000.0,0.0002,2]
[386530780,1758357041122,-200000.0,0.0002,2]
[386530781,1758357041131,-100000.0,0.0002,2]
[386530782,1758357041141,-100000.0,0.0002,2]
[386530783,1758357041150,-294240.37197379,0.0002,2]
[386530784,1758357041274,-46200.26823941,0.0002,2]
[386530785,1758357041286,-71998.9832023,0.0002,2]
[386530786,1758357041297,-44865.52369444,0.0002,2]
[386530787,1758357041309,-5802.5,0.0002,2]
[386530792,1758357042930,-20815.21922135,0.0002,2]
[386530793,1758357042978,-645591.95240841,0.0002,2]
[386530794,1758357043105,-16958.9766109,0.0002,2]
[386530795,1758357043116,-694.8673908,0.0002,2]
[386530796,1758357043213,-18195.27611606,0.0002,2]
[386530800,1758357045810,-370.563,0.0002,2]
[386530804,1758357271224,-500.0,0.000189,2]
[386530805,1758357271265,-169.81140978,0.000189,2]
[386530806,1758357271313,-349.20511375,0.000189,2]
[386530807,1758357271355,-500.0,0.000189,2]
[386530808,1758357271402,-500.0,0.000189,2]
[386530809,1758357271442,-500.0,0.000189,2]
[386530810,1758357271483,-500.0,0.000189,2]
[386530811,1758357271523,-500.0,0.000189,2]
[386530812,1758357271565,-500.0,0.000189,2]
[386530813,1758357271603,-541.00960888,0.000189,2]
[386530814,1758357271641,-500.0,0.000189,2]
[386530815,1758357271679,-500.0,0.000189,2]
[386530816,1758357271717,-500.0,0.000189,2]
[386530817,1758357271754,-500.0,0.000189,2]
[386530818,1758357271792,-500.0,0.000189,2]
[386530819,1758357271831,-500.0,0.000189,2]
[386530820,1758357271866,-500.0,0.000189,2]
[386530821,1758357271904,-153.97386759,0.000189,2]
[386530831,1758357555818,204.077293,0.00018,2]
[386530832,1758357701412,500.0,0.00013699,2]
[386530841,1758358200716,-425.737586,0.00018682,2]
[386530846,1758358231808,-150.0,0.00018777,2]
[386530848,1758358231818,-300.0,0.00018789,2]
[386530849,1758358231828,-250.0,0.000188,2]
[386530850,1758358231838,-300.0,0.00018892,2]
[386530852,1758358231847,-1200.0,0.00018892,2]
[386530853,1758358231857,-666.0,0.00018967,3]
[386530855,1758358231867,-161.92,0.00019,4]
[386530856,1758358231877,-5000.0,0.00019,2]
[386530858,1758358231888,-169.41,0.00019023,2]
[386530860,1758358231898,-168.0,0.00019313,2]
[386530861,1758358231907,-168.0,0.00019342,2]
[386530862,1758358231917,-340.33630606,0.00019425,2]
[386530863,1758358231937,-163.66369394,0.00019425,2]
[386530864,1758358231947,-168.0,0.0001945,2]
[386530865,1758358231957,-150.0,0.00019517,2]
[386530866,1758358231967,-168.0,0.00019703,2]
[386530867,1758358231976,-1425.0,0.00019742,2]
[386530868,1758358231986,-192.51,0.00019746,2]
[386530869,1758358231996,-168.0,0.00019795,2]
[386530870,1758358232007,-168.0,0.00019842,2]
[386530871,1758358232017,-1547.97477114,0.00019851,2]
[386530872,1758358232026,-168.0,0.00019864,2]
[386530873,1758358232036,-202.73308187,0.00019899,2]
[386530874,1758358232046,-258.85209062,0.000199,2]
[386530875,1758358232055,-5000.0,0.000199,2]
[386530876,1758358232065,-7917.52961118,0.000199,2]
[386530877,1758358232075,-26385.07148946,0.000199,2]
[386530878,1758358232084,-830.54,0.00019901,2]
[386530879,1758358232094,-150.0,0.0001993,2]
[386530880,1758358232103,-182.942,0.00019959,2]
[386530881,1758358232113,-500.0,0.0001997,2]
[386530882,1758358232123,-500.0,0.0001997,2]
[386530883,1758358232133,-500.0,0.0001997,2]
[386530884,1758358232142,-500.0,0.0001997,2]
[386530885,1758358232152,-500.0,0.0001997,2]
[386530886,1758358232161,-500.0,0.0001997,2]
[386530887,1758358232171,-720.64396832,0.0001997,2]
[386530888,1758358232181,-1000.0,0.0001997,2]
[386530889,1758358232191,-1000.0,0.0001997,2]
[386530890,1758358232200,-1000.0,0.0001997,2]
[386530891,1758358232211,-1000.0,0.0001997,2]
[386530892,1758358232221,-1000.0,0.0001997,2]
[386530893,1758358232231,-1000.0,0.0001997,2]
[386530894,1758358232249,-500.0,0.00019973,2]
[386530895,1758358232259,-435.0,0.00019973,2]
[386530896,1758358232268,-500.0,0.00019973,2]
[386530897,1758358232278,-500.0,0.00019973,2]
[386530898,1758358232288,-500.0,0.00019973,2]
[386530899,1758358232297,-603.88361874,0.00019973,2]
[386530900,1758358232307,-502.06797421,0.00019973,2]
[386530901,1758358232316,-500.0,0.00019973,2]
[386530902,1758358232326,-500.0,0.00019973,2]
[386530903,1758358232339,-500.0,0.00019973,2]
[386530905,1758358232350,-500.0,0.00019973,2]
[386530907,1758358232359,-169.41,0.00019974,2]
[386530909,1758358232369,-151.0,0.00019975,2]
[386530911,1758358232378,-151.0,0.00019983,2]
[386530913,1758358232388,-150.0,0.00019988,2]
[386530915,1758358232399,-150.0,0.00019988,2]
[386530917,1758358232409,-417.0,0.00019988,2]
[386530919,1758358232419,-150.0,0.00019988,2]
[386530921,1758358232428,-500.0,0.00019988,2]
[386530924,1758358232438,-500.0,0.00019988,2]
[386530926,1758358232447,-500.0,0.00019988,2]
[386530928,1758358232457,-500.0,0.00019988,2]
[386530931,1758358232467,-759.0,0.00019988,2]
[386530933,1758358232477,-500.0,0.00019988,2]
[386530936,1758358232487,-150.0,0.00019988,2]
[386530938,1758358232497,-150.0,0.00019988,2]
[386530940,1758358232507,-150.0,0.00019988,2]
[386530942,1758358232515,-501.0,0.00019988,2]
[386530944,1758358232525,-150.0,0.00019988,2]
[386530946,1758358232535,-150.0,0.00019988,2]
[386530948,1758358232544,-1207.0,0.00019988,2]
[386530950,1758358232553,-598.0,0.00019988,2]
[386530952,1758358232563,-150.0,0.00019988,2]
[386530954,1758358232572,-500.0,0.00019988,2]
[386530956,1758358232582,-150.0,0.00019988,2]
[386530958,1758358232591,-500.0,0.00019988,2]
[386530960,1758358232601,-150.0,0.00019988,2]
[386530962,1758358232610,-888.0,0.00019988,2]
[386530964,1758358232620,-150.0,0.00019988,2]
[386530966,1758358232629,-500.0,0.00019988,2]
[386530968,1758358232639,-234.30009399,0.00019988,2]
[386530970,1758358232648,-202.0811766,0.00019988,2]
[386530972,1758358232658,-150.0,0.00019988,2]
[386530974,1758358232667,-500.0,0.00019988,2]
[386530976,1758358232677,-500.0,0.00019988,2]
[386530978,1758358232686,-500.0,0.00019988,2]
[386530980,1758358232695,-500.0,0.00019988,2]
[386530982,1758358232705,-388.81,0.0001999,2]
[386530984,1758358232714,-388.81,0.0001999,2]
[386530986,1758358232723,-388.81,0.0001999,2]
[386530988,1758358232732,-388.81,0.0001999,2]
[386530990,1758358232742,-388.81,0.0001999,2]
[386530992,1758358232751,-154.12,0.0001999,2]
[386530994,1758358232760,-154.12,0.0001999,2]
[386530996,1758358232770,-179.16707879,0.0001999,2]
[386530998,1758358232779,-179.16707879,0.0001999,2]
[386531000,1758358232788,-500.0,0.00019992,2]
[386531002,1758358232798,-151.0,0.00019992,2]
[386531004,1758358232807,-1690.9862126,0.00019998,2]
[386531006,1758358232816,-27071.4599629,0.00019998,2]
[386531008,1758358232826,-623.0,0.0002,2]
[386531009,1758358232835,-500.0,0.0002,2]
[386531010,1758358232844,-27563.19414667,0.0002,2]
[386531011,1758358232854,-588.29498737,0.0002,2]
[386531012,1758358232888,-500.0,0.00018891,2]
[386531013,1758358232898,-4469.27502503,0.0002,2]
[386531014,1758358232909,-558.80631588,0.0002,2]
[386531015,1758358232921,-1206.97660321,0.0002,2]
[386531016,1758358232932,-9820.72702744,0.0002,2]
[386531017,1758358232944,-90493.53784576,0.0002,2]
[386531023,1758358233007,-500.0,0.00018891,2]
[386531024,1758358233017,-106.48713533,0.00018891,2]
[386531025,1758358233049,-393.51286467,0.00018891,2]
[386531026,1758358233058,-500.0,0.00018891,2]
[386531027,1758358233068,-500.0,0.00018891,2]
[386531028,1758358233078,-40584.02891708,0.0002,2]
[386531029,1758358233087,-12954.71066517,0.0002,2]
[386531030,1758358233100,-126661.37881957,0.0002,2]
[386531031,1758358233120,-265.52448006,0.00018891,2]
[386531032,1758358233129,-225.51156964,0.0002,2]
[386531033,1758358233141,-342.48315084,0.0002,2]
[386531034,1758358233164,-787.83291821,0.0002,2]
[386531035,1758358233176,-861.08144939,0.0002,2]
[386531039,1758358238190,-3717.81520346,0.0002,2]
[386531043,1758358238229,-1179.71600711,0.0002,2]
[386531046,1758358238250,-11199.43922809,0.0002,2]
[386531049,1758358238261,-34061.0934384,0.0002,2]
[386531051,1758358238273,-636.35873068,0.0002,2]
[386531216,1758358239811,-386786.15434389,0.0002,2]
[386531218,1758358239821,-2407818.9410557,0.0002,2]
[386531253,1758358240135,-28.94952987,0.0002,2]
[386531256,1758358240161,-17066.96755948,0.0002,2]
[386531524,1758358242810,-292.45457473,0.0002,2]
[386531526,1758358242822,-2503.6638045,0.0002,2]
[386531528,1758358242834,-1311.86766308,0.0002,2]
[386531546,1758358243023,-1441872.07502425,0.0002,2]
[386531804,1758358245748,-500.0,0.00018891,2]
[386531806,1758358245758,-500.0,0.00018891,2]
[386531808,1758358245767,-500.0,0.00018891,2]
[386531810,1758358245777,-1690.09071629,0.0002,2]
[386531819,1758358245853,-546.24412415,0.0002,2]
[386531826,1758358245909,-11405.86937543,0.0002,2]
[386532201,1758358338209,158.78,9.585e-05,2]
[386532202,1758358338601,158.78,0.00011982,2]
[386532203,1758358338817,158.78,0.00014378,2]
[386532204,1758358339057,158.78,0.00016774,2]
[386532205,1758358409820,-150.0,0.00019058,2]
[386532206,1758358427947,156.5018909,0.000185,2]
[386532211,1758358516318,-560.0,0.00019075,2]
[386532212,1758358535321,169.41,0.00019048,2]
[386532213,1758358537534,84.0881091,0.00019048,3]
[386532214,1758358537556,560.0,0.00019048,3]
[386532216,1758358584102,250.0,0.00015,2]
[386532217,1758358584753,-21.9118909,0.00019048,3]
[386532218,1758358624427,218.74810147,0.00019013,2]
[386532219,1758358678639,400.0,0.00030136,120]
[386532222,1758358884902,192.61,0.00019011,2]
[386532224,1758359051086,57.39,0.00018969,2]
[386532225,1758359051109,234.75,0.00018969,2]
[386532228,1758359309648,157.43,9.462e-05,2]
[386532229,1758359309805,157.43,0.00010814,2]
[386532230,1758359310043,157.43,0.00012166,2]
[386532231,1758359310251,157.43,0.00013518,2]
[386532232,1758359311090,157.43,0.00014869,2]
[386532233,1758359311156,157.43,0.00016221,2]
[386532234,1758359311202,157.43,0.00017573,2]
[386532235,1758359311321,157.43,0.00018925,2]
[386532236,1758359315337,150.0,0.00018957,7]
[386532238,1758359387554,150.0,0.000185,2]
[386532239,1758359418812,-250.0,0.00019136,2]
[386532240,1758359418880,-158.78,0.00019171,2]
[386532241,1758359418905,-250.0,0.00019177,2]
[386532242,1758359418930,-160.0,0.00019198,2]
[386532243,1758359418960,-336.56781667,0.00019223,2]
[386532244,1758359418986,-213.32528632,0.00019356,2]
[386532245,1758359419012,-200.0,0.00019565,2]
[386532246,1758359419038,-516.38316968,0.00019674,2]
[386532247,1758359419066,-150.0,0.0001968,2]
[386532248,1758359419090,-1000.0,0.000197,2]
[386532249,1758359419114,-910.56553,0.0001987,2]
[386532250,1758359419140,-300.0,0.00019899,2]
[386532251,1758359419166,-1200.0,0.00019899,2]
[386532252,1758359419190,-1000.0,0.000199,2]
[386532253,1758359419214,-3354.37819733,0.000199,2]
[386532264,1758359432209,-1296.51280267,0.000199,2]
[386532265,1758359432218,-1842.41080052,0.000199,2]
[386532266,1758359432228,-2177.55834595,0.000199,2]
[386532267,1758359432285,-2822.44165405,0.000199,2]
[386532268,1758359432295,-813.0,0.00019901,2]
[386532269,1758359432305,-14652.6378495,0.00019901,2]
[386532270,1758359432317,-720.02405056,0.00019901,2]
[386532299,1758359437917,-3510.33809994,0.00019901,2]
[386532300,1758359437926,-4126.92329074,0.00019901,2]
[386532301,1758359438116,-47.07670926,0.00019901,2]
[386532302,1758359438126,-1178.0,0.00019901,2]
[386532303,1758359438136,-521.67487993,0.00019973,2]
[386532304,1758359438145,-500.0,0.00019973,2]
[386532305,1758359438155,-500.0,0.00019973,2]
[386532306,1758359438164,-500.0,0.00019973,2]
[386532307,1758359438173,-500.0,0.00019973,2]
[386532308,1758359438184,-500.0,0.00019973,2]
[386532309,1758359438193,-500.0,0.00019973,2]
[386532310,1758359438203,-500.0,0.00019973,2]
[386532311,1758359438211,-500.0,0.00019973,2]
[386532312,1758359438220,-501.09179752,0.00019973,2]
[386532313,1758359438230,-1630.0,0.0001999,2]
[386532314,1758359438240,-2426.16970239,0.00019999,2]
[386532315,1758359438269,-1259.44,0.00019999,2]
[386532322,1758359439912,-1951.71636651,0.00019999,2]
[386532323,1758359439921,-2563.3398267,0.00019999,2]
[386532324,1758359439931,-692.3534028,0.00019999,2]
[386532325,1758359439940,-5804.2012939,0.00019999,2]
[386532326,1758359439950,-710.0,0.0002,2]
[386532327,1758359439960,-13781.59707334,0.0002,2]
[386532328,1758359439970,-462183.36564776,0.0002,2]
[386532329,1758359439979,-4000.0,0.0002,4]
[386532330,1758359439989,-2302918.52178858,0.0002,2]
[386532338,1758359440560,-36412.70501429,0.0002,2]
[386532339,1758359440571,-48261.59879935,0.0002,2]
[386532340,1758359440596,-2316.85634144,0.0002,2]
[386532341,1758359440635,-400.0,0.0002,2]
[386532342,1758359440663,-857.16113656,0.0002,2]
[386532353,1758359443057,-702.0,0.0001999,2]
[386532375,1758359443557,-1325.79190863,0.0001999,2]
[386532377,1758359443569,-2201.20809137,0.0001999,2]
[386532379,1758359443578,-12867.59571661,0.0002,2]
[386532398,1758359446118,-476.90577465,0.0002,2]
[386532399,1758359446172,-1345.65700001,0.0002,2]
[386532400,1758359446321,-15914.11339514,0.0002,2]
[386532658,1758359560745,1000.0,0.00018925,2]
[386532660,1758359667010,200.0,0.00018925,2]
[386532661,1758359756073,577.68,0.00018925,2]
[386532667,1758359837778,200.0,0.00018925,2]
[386532671,1758359994920,250.0,0.00018899,2]
[386532675,1758360127913,152.5150161,0.0001893,2]
[386532681,1758360191323,1370.12,0.00018884,2]
[386532685,1758360211537,5797.53,0.00018885,2]
[386532686,1758360243860,5000.0,0.00018882,2]
[386532689,1758360306940,167.88,0.00018758,2]
[386532690,1758360312531,561.02,0.00018758,2]
[386532691,1758360325951,4389.24927041,0.000175,2]
[386532692,1758360326212,404.75072959,0.000108,2]
[386532695,1758360345637,157.46,9.371e-05,2]
[386532707,1758360437953,150.0,0.000184,2]
[386532708,1758360441787,500.0,0.0001305,2]
[386532709,1758360443655,152.51501609,0.00018918,2]
[386532715,1758360497427,302.91084596,0.000125,2]
[386532716,1758360505458,677.19,0.00018668,2]
[386532728,1758360559994,595.46,0.00018679,2]
[386532729,1758360620389,383.57,0.00018758,2]
[386532745,1758360632202,-423.66,0.00019015,2]
[386532746,1758360632211,-300.0,0.00019015,2]
[386532747,1758360632221,-250.0,0.00019015,2]
[386532748,1758360632231,-195.0,0.00019016,2]
[386532749,1758360632241,-300.0,0.00019016,2]
[386532750,1758360632251,-257.36126675,0.00019016,2]
[386532751,1758360632260,-237.82757255,0.00019017,2]
[386532752,1758360632296,-962.17242745,0.00019017,2]
[386532753,1758360632306,-300.0,0.00019017,2]
[386532754,1758360632315,-265.86750566,0.00019017,2]
[386532755,1758360632432,-34.13249434,0.00019017,2]
[386532756,1758360632441,-3025.48304234,0.00019018,2]
[386532757,1758360632451,-7965.41053268,0.00019018,2]
[386532758,1758360632461,-1500.0,0.0001903,2]
[386532759,1758360632471,-219.26,0.0001903,2]
[386532760,1758360632480,-500.0,0.0001903,2]
[386532761,1758360632489,-344.23585075,0.000191,2]
[386532762,1758360632499,-151.0,0.00019152,2]
[386532763,1758360632508,-151.0,0.00019154,2]
[386532764,1758360632518,-151.0,0.00019154,2]
[386532766,1758360632527,-151.0,0.00019162,2]
[386532768,1758360632537,-151.0,0.00019178,2]
[386532770,1758360632547,-165.92,0.00019349,2]
[386532771,1758360632557,-528.82154686,0.00019467,2]
[386532772,1758360632566,-500.0,0.00019479,2]
[386532773,1758360632576,-150.0,0.0001958,2]
[386532775,1758360632586,-170.49,0.000197,2]
[386532777,1758360632595,-156.587,0.00019726,2]
[386532778,1758360632605,-758.80461,0.000198,2]
[386532779,1758360632615,-151.81323912,0.00019879,2]
[386532780,1758360632624,-500.0,0.00019888,2]
[386532782,1758360632634,-151.0,0.00019888,2]
[386532784,1758360632643,-151.0,0.00019888,2]
[386532786,1758360632652,-200.0,0.00019888,2]
[386532788,1758360632662,-500.0,0.00019888,2]
[386532790,1758360632671,-151.0,0.00019888,2]
[386532792,1758360632680,-500.0,0.00019888,2]
[386532794,1758360632689,-151.0,0.00019888,2]
[386532796,1758360632701,-500.0,0.00019888,2]
[386532798,1758360632710,-151.0,0.00019888,2]
[386532800,1758360632720,-500.0,0.00019888,2]
[386532801,1758360632730,-322.6107,0.00019888,2]
[386532803,1758360632739,-500.0,0.00019888,2]
[386532804,1758360632748,-151.0,0.00019888,2]
[386532807,1758360632761,-500.0,0.00019888,2]
[386532809,1758360632770,-151.0,0.00019888,2]
[386532811,1758360632780,-500.0,0.00019888,2]
[386532813,1758360632790,-151.0,0.00019888,2]
[386532815,1758360632800,-500.0,0.00019888,2]
[386532817,1758360632810,-151.0,0.00019888,2]
[386532818,1758360632819,-500.0,0.00019888,2]
[386532820,1758360632829,-500.0,0.00019888,2]
[386532822,1758360632839,-332.20330044,0.00019888,2]
[386532824,1758360632848,-200.0,0.00019888,2]
[386532826,1758360632857,-243.47470451,0.00019888,2]
[386532828,1758360632867,-180.06018685,0.00019888,2]
[386532830,1758360632876,-500.0,0.00019888,2]
[386532832,1758360632885,-500.0,0.00019888,2]
[386532834,1758360632894,-500.0,0.00019888,2]
[386532836,1758360632904,-500.0,0.00019888,2]
[386532838,1758360632914,-648.24399253,0.00019888,2]
[386532840,1758360632923,-200.0,0.00019888,2]
[386532842,1758360632933,-157.82135318,0.00019888,2]
[386532844,1758360632942,-679.9074,0.000199,2]
[386532846,1758360632951,-1000.0,0.000199,2]
[386532848,1758360632961,-1181.7555,0.000199,2]
[386532850,1758360632970,-629.18368372,0.000199,2]
[386532852,1758360632980,-5000.0,0.000199,2]
[386532854,1758360632990,-758.80461,0.000199,2]
[386532856,1758360633000,-20085.41830146,0.000199,2]
[386532858,1758360633010,-212.97,0.00019918,2]
[386532860,1758360633020,-528.82154686,0.00019925,2]
[386532862,1758360633031,-700.0,0.0001997,2]
[386532864,1758360633042,-700.0,0.0001997,2]
[386532866,1758360633052,-880.83145519,0.0001997,2]
[386532868,1758360633063,-481.98032782,0.00019973,2]
[386532870,1758360633073,-504.5498583,0.00019973,2]
[386532872,1758360633083,-500.0,0.00019973,2]
[386532874,1758360633094,-503.76607902,0.00019973,2]
[386532875,1758360633103,-500.0,0.00019973,2]
[386532876,1758360633113,-500.0,0.00019973,2]
[386532877,1758360633123,-500.0,0.00019973,2]
[386532878,1758360633133,-500.0,0.00019973,2]
[386532879,1758360633144,-500.0,0.00019973,2]
[386532880,1758360633153,-500.0,0.00019973,2]
[386532881,1758360633164,-500.0,0.00019973,2]
[386532882,1758360633174,-500.0,0.00019973,2]
[386532883,1758360633183,-500.0,0.00019973,2]
[386532884,1758360633193,-169.29324774,0.00019973,2]
[386532885,1758360633203,-544.5225466,0.00019973,2]
[386532886,1758360633212,-500.0,0.00019973,2]
[386532887,1758360633222,-500.0,0.00019973,2]
[386532888,1758360633232,-500.0,0.00019973,2]
[386532889,1758360633242,-500.0,0.00019973,2]
[386532890,1758360633251,-163.09081264,0.00019973,2]
[386532891,1758360633261,-500.0,0.00019973,2]
[386532892,1758360633271,-500.65173713,0.00019973,2]
[386532893,1758360633281,-500.0,0.00019973,2]
[386532894,1758360633291,-502.06339414,0.00019973,2]
[386532895,1758360633300,-219.26,0.00019981,2]
[386532896,1758360633310,-151.0,0.00019986,2]
[386532897,1758360633320,-150.0,0.00019992,2]
[386532898,1758360633330,-150.0,0.00019992,2]
[386532899,1758360633339,-150.0,0.00019992,2]
[386532900,1758360633349,-150.0,0.00019992,2]
[386532901,1758360633358,-500.0,0.00019992,2]
[386532902,1758360633367,-500.0,0.00019992,2]
[386532903,1758360633378,-500.0,0.00019992,2]
[386532904,1758360633387,-500.0,0.00019992,2]
[386532905,1758360633397,-150.0,0.00019992,2]
[386532906,1758360633407,-150.35354847,0.00019992,2]
[386532907,1758360633416,-150.0,0.00019992,2]
[386532908,1758360633426,-150.80091383,0.00019992,2]
[386532909,1758360633435,-150.0,0.00019992,2]
[386532910,1758360633445,-150.0,0.00019992,2]
[386532911,1758360633455,-150.0,0.00019992,2]
[386532912,1758360633465,-500.0,0.00019992,2]
[386532913,1758360633475,-500.0,0.00019992,2]
[386532914,1758360633485,-2919.0,0.00019992,2]
[386532915,1758360633495,-150.0,0.00019992,2]
[386532916,1758360633504,-212.3451087,0.00019992,2]
[386532917,1758360633514,-195.36879209,0.00019992,2]
[386532918,1758360633523,-152.45933607,0.00019992,2]
[386532919,1758360633533,-500.0,0.00019992,2]
[386532920,1758360633542,-851.0,0.00019992,2]
[386532921,1758360633552,-500.0,0.00019992,2]
[386532922,1758360633560,-500.0,0.00019992,2]
[386532923,1758360633570,-150.0,0.00019992,2]
[386532924,1758360633580,-150.0,0.00019992,2]
[386532925,1758360633589,-150.0,0.00019992,2]
[386532926,1758360633599,-150.0,0.00019992,2]
[386532927,1758360633608,-500.0,0.00019992,2]